[Event "ROM-GER Kings"]
[Site "Medias"]
[Date "2015.11.02"]
[Round "4.5"]
[White "Marin, Mihail"]
[Black "Wagner, Dennis"]
[Result "0-1"]
[ECO "B20"]
[WhiteElo "2580"]
[BlackElo "2575"]
[Annotator "Bulmaga,I"]
[PlyCount "74"]
[EventDate "2015.10.30"]
[EventType "schev"]
[EventRounds "5"]
[EventCountry "ROU"]
[SourceTitle "CBM 169"]
[Source "ChessBase"]
[SourceDate "2015.11.10"]
[SourceVersion "1"]
[SourceVersionDate "2015.11.10"]
[SourceQuality "1"]
[WhiteTeam "Romania"]
[BlackTeam "Germany"]
[WhiteTeamCountry "ROU"]
[BlackTeamCountry "GER"]
[TimeControl "40/5400+30:1800+30"]

1. g3 c5 2. Bg2 g6 3. e4 {Marin wählt eine interessante Zugfolge, um Schwarz
in einen Sizilianer zu locken - Wagner beantwortet 1.e4 in der Regel mit 1.e5.}
Bg7 4. d3 Nc6 5. f4 d6 6. Nf3 e5 7. O-O Nge7 {[#]} 8. f5 $5 gxf5 9. Nh4 {
Sehr originell, aber auch sehr riskant. Weiß will Matt setzen, aber die Frage
ist, ob er genug Figuren hat, die den Angriff auf den schwarzen König
unterstützen können.} f4 10. Qh5 Nd4 11. Na3 Ng6 12. Nf5 Nxf5 13. exf5 Ne7 {
[#]} 14. Bh3 $2 (14. gxf4 $1 Bxf5 15. fxe5 Bg6 16. Qh4 dxe5 17. Bg5 Qd4+ 18.
Qxd4 cxd4 19. Nc4 $44) 14... Rg8 15. gxf4 e4 $17 16. Kh1 exd3 17. Nc4 $6 (17.
cxd3 Bd7 18. Bg2 Bxf5 19. Re1 $17) 17... dxc2 18. Bd2 b5 19. Bg2 bxc4 20. Bxa8
Bxf5 21. Bf3 Bxb2 22. Rae1 Qd7 23. Rf2 Bf6 24. Bd5 Rg6 25. Qf3 Kf8 26. Bxc4 d5
27. Bd3 Bxd3 28. Qxd3 Bh4 29. f5 Nxf5 (29... Bxf2 30. fxg6 Bxe1 31. gxh7 Kg7
32. Bh6+ Kh8 $19) 30. Rxf5 Bxe1 31. Bc1 d4 32. Qf3 Qc6 33. Rxf7+ Ke8 34. Rf8+
Kd7 35. Rf7+ Kc8 36. Rf8+ Kb7 37. Rf7+ Kb6 0-1

[Event "FRA-chT Top 12"]
[Site "Drancy"]
[Date "2016.05.31"]
[Round "4.4"]
[White "Todorov, Todor"]
[Black "Maze, Sebastien"]
[Result "0-1"]
[ECO "B20"]
[WhiteElo "2494"]
[BlackElo "2614"]
[Annotator "RR"]
[PlyCount "88"]
[EventDate "2016.05.28"]
[EventType "team-tourn"]
[EventRounds "11"]
[EventCountry "FRA"]
[SourceTitle "CBM 172 Extra"]
[Source "ChessBase"]
[SourceDate "2016.06.21"]
[SourceVersion "1"]
[SourceVersionDate "2016.06.21"]
[SourceQuality "1"]
[WhiteTeam "Drancy Cavalier Bleu"]
[BlackTeam "Bois Colombes"]
[WhiteTeamCountry "FRA"]
[BlackTeamCountry "FRA"]
[TimeControl "40/5400+30:1800+30"]

1. e4 {[%emt 0:00:49][%mdl 512]} c5 {[%emt 0:00:00] Sébastien Mazé remporte
un second prix de beauté en 4 rondes!} 2. b3 {[%emt 0:01:18] Relativement
populaire depuis quelques années} Nc6 {[%emt 0:00:37]} (2... g6 {la ligne
critique à haut niveau} 3. Bb2 Nf6 4. e5 Nd5 {Aravindh,C (2486)-Carlsen,M 
(2834) Qatar Masters op 2015 (2) 0-1}) (2... Nf6 3. e5 Nd5) 3. Bb2 {[%emt 0:00:
07]} e5 {[%emt 0:00:23] Tentant d'enfermer le Bb2} (3... Nf6 4. e5 Nd5 {
Smits,M (2259)-Maze,S (2506) BEL-chT 0506 2005 (5) 0-1}) 4. f4 {[%emt 0:00:06]}
exf4 {[%emt 0:03:25]} (4... d6) 5. Nf3 {[%emt 0:00:23]} d6 {[%emt 0:00:09]} (
5... d5 6. exd5 Qxd5 7. Bc4 Qe4+ 8. Kf2 Be6 9. Ng5 Qg6 10. Nxe6 fxe6 11. Bxe6
Bd6 12. Re1 Nge7 13. Na3 Nd8 14. Bc4 f3 15. gxf3 Bxh2 16. Be5 Qh5 17. Qe2 Ndc6
18. f4 Qh4+ 19. Kg2 Bxf4 20. Bxf4 Qxf4 21. Rf1 Qg5+ 22. Kh1 O-O-O 23. Qh2 Rd4
24. Be6+ Kd8 25. Rg1 Qf6 26. Bh3 Ne5 27. Raf1 Qc6+ 28. Bg2 Qd6 29. Nb5 Qe6 30.
Nxd4 cxd4 31. Re1 N7g6 32. c3 Qd6 33. Re4 dxc3 34. dxc3 Kc7 35. Rge1 {Inarkiev,
E (2660)-Donchenko,A (2577) Berlin 2015 1-0}) 6. Nc3 $6 {[%emt 0:00:19]} (6.
Bb5 $142 Nf6 7. Nc3 Be7 8. O-O Bg4 9. Nd5 O-O) (6. Bc4 $142 Be6 7. O-O Bxc4 8.
bxc4 Nf6 9. Nc3 $14) 6... Be7 $5 {[%emt 0:04:09][%cal Ge7h4]} (6... Nf6 7. Bb5
Be7 8. O-O O-O) 7. Bc4 {[%emt 0:09:53]} Bh4+ {[%emt 0:01:26]} 8. Nxh4 {[%emt 0:
05:30]} Qxh4+ {[%emt 0:00:16]} 9. Kf1 {[%emt 0:00:19]} Nf6 {[%emt 0:05:37]} 10.
Qe1 $146 {[%emt 0:02:33]} (10. Nd5 O-O 11. Nxf6+ gxf6 12. g3 fxg3 13. Qf3 Bh3+
14. Kg1 g2 15. Bxf6 Ne5 16. Qe2 gxh1=Q+ {0-1 (16) Blesing,A (2033)-Rahls,P 
(2190) Berlin 1994}) 10... Qxe1+ {[%emt 0:11:59]} 11. Rxe1 {[%emt 0:03:13]} Ne5
$11 {[%emt 0:00:23]} 12. Kf2 {[%emt 0:18:52][%cal Gh1f1]} a6 {[%emt 0:09:52]} (
12... Nfg4+ $5 13. Kf1 Nxc4 14. bxc4 Be6 15. d3 O-O-O $32 {[%cal Gg4e3]}) (
12... Nxc4 $5 13. bxc4 Be6 14. Nd5 (14. d3 {[%csl Re3]})) 13. Rhf1 {[%emt 0:07:
02]} b5 {[%emt 0:16:51]} 14. Bd5 {[%emt 0:02:26]} Ra7 $1 {[%emt 0:00:40]} (
14... Nxd5 $143 15. Nxd5 {[%csl Gb2]} O-O) 15. Kg1 {[%emt 0:03:44]} g5 {
[%emt 0:00:38] Les Blancs n'ont pas beaucoup de compensations pour le P
sacrifié} 16. a4 {[%emt 0:06:52]} (16. h4 h6) 16... b4 {[%emt 0:05:05]} 17.
Na2 {[%emt 0:01:03]} a5 {[%emt 0:01:30]} 18. d4 {[%emt 0:00:26]} cxd4 {[%emt 0:
00:06]} 19. Bxd4 {[%emt 0:00:05]} Rc7 {[%emt 0:00:08]} 20. Rf2 {[%emt 0:07:00]}
Nxd5 {[%emt 0:11:21]} 21. exd5 {[%emt 0:02:35]} Re7 {[%emt 0:00:59]} 22. Rc1 {
[%emt 0:06:45] La position est assez chaotique avec des pièces mal
coordonnées des deux cotés.} O-O {[%emt 0:00:43]} 23. Bb6 $6 {[%emt 0:02:10]
Les Blancs regagnent le P sacrifié mais au risque de mettre le B hors-jeu} Ng4
{[%emt 0:00:34]} 24. Rf3 {[%emt 0:01:09]} Bb7 {[%emt 0:05:11]} 25. Bxa5 {
[%emt 0:02:31]} Bxd5 $15 {[%emt 0:00:19][%csl Ra2,Ra5,Rc2] La partie a
basculé dans le camp Noir} 26. Rd3 {[%emt 0:02:39]} Bb7 {[%emt 0:13:55]} 27.
h3 {[%emt 0:00:05]} Rfe8 $1 {[%emt 0:02:06] Un sacrifice probablement intuitif
pour tenter de profiter de la mauvaise coordination des pièces Blanches} 28.
hxg4 {[%emt 0:01:24]} Re2 {[%emt 0:00:04]} 29. Rf3 {[%emt 0:04:11]} h5 $1 {
[%emt 0:00:13] Joué à tempo} (29... Bxf3 $143 $6 30. gxf3 R8e3 (30... Re1+ $2
31. Kf2 (31. Rxe1 Rxe1+ 32. Kf2 Rb1 33. Nxb4) 31... R8e2#) 31. Nxb4 Rxf3 32.
Nd3 Rg3+ 33. Kf1 {Et les Blancs doivent survivre à l'attaque}) 30. gxh5 {
[%emt 0:02:54]} Bxf3 {[%emt 0:04:40]} 31. gxf3 {[%emt 0:00:04]} g4 $3 {[%emt 0:
00:16][%csl Gf4][%cal Gf4f3]} 32. Bxb4 $2 {[%emt 0:01:11] Paradoxalement, il
restait 6 minutes aux Blancs contre seulement deux aux Noirs mais le bulgare
gaffe sous la pression.} (32. Nxb4 $142 R8e5 (32... g3 33. Nd5 {[%cal Gd5f6]}
Kg7 34. Nxf4) 33. Bb6 {[%cal Gb6f2,Gb4d3] Et les pièces mineures doivent
avoir le temps de revenir défendre l'aile-roi}) 32... gxf3 {[%emt 0:00:32]}
33. Kf1 {[%emt 0:03:39]} Rh2 $1 $40 {[%emt 0:01:24][%csl Ra2,Rc1,Gh2][%cal
Ge8e2,Gh2h1] La menace Rh1 bloque le Na2 à la défense de la Rc1 et les
Blancs ont virtuellement une pièce de moins} 34. Re1 {[%emt 0:00:56]} Ree2 $1
{[%emt 0:00:13]} 35. Rxe2 {[%emt 0:00:30]} fxe2+ $19 {[%emt 0:00:03][%cal
Gf4f3] Les P sont trop forts} 36. Ke1 {[%emt 0:00:34]} f3 {[%emt 0:00:04]} 37.
Kd2 {[%emt 0:00:01]} Rh1 {[%emt 0:01:26]} 38. Ke3 {[%emt 0:00:02]} Rf1 $1 {
[%emt 0:01:05]} (38... e1=Q+ 39. Bxe1 Rxe1+ 40. Kxf3 {[%cal Ga4a8]}) 39. Bc3 {
[%emt 0:00:33]} f5 {[%emt 0:00:13]} 40. Nc1 {[%emt 0:02:19]} f4+ $1 {[%emt 0:
00:37]} 41. Kxf4 {[%emt 0:30:26]} f2 {[%emt 0:30:38]} 42. Nxe2 {[%emt 0:00:30]}
Rg1 {[%emt 0:00:07]} 43. Nxg1 {[%emt 0:01:29]} fxg1=Q {[%emt 0:00:09]} 44. Ke4
{[%emt 0:00:01]} Qd1 {[%emt 0:00:28]} 0-1